[Event "Titled Tuesday Blitz March 14 Early 2023"]
[White "Pranav, V"]
[Black "Seo, Jung Min"]
[WhiteFideId "25060783"]
[BlackFideId "1734687"]
[WhiteElo "2500"]
[BlackElo "2468"]
[Result "1/2-1/2"]
[Round "04"]
[TimeControl "180+2"]
[Date "2023.03.14"]
[WhiteClock "0:00:06"]
[BlackClock "0:00:04"]

1. d4 {[%clk 0:03:00]}  Nf6 {[%clk 0:02:59]} 2. Bf4 {[%clk 0:03:01]}  d5 {[%clk 0:02:58]} 3. e3 {[%clk 0:03:00]}  c5 {[%clk 0:02:54]} 4. c3 {[%clk 0:03:00]}  Nc6 {[%clk 0:02:52]} 5. Nd2 {[%clk 0:03:00]}  Bf5 {[%clk 0:02:47]} 6. Ngf3 {[%clk 0:02:56]}  e6 {[%clk 0:02:47]} 7. Qb3 {[%clk 0:02:54]}  Qb6 {[%clk 0:02:37]} 8. h3 {[%clk 0:02:44]}  h6 {[%clk 0:02:37]} 9. Be2 {[%clk 0:02:27]}  c4 {[%clk 0:02:36]} 10. Qxb6 {[%clk 0:02:26]}  axb6 {[%clk 0:02:36]} 11. O-O {[%clk 0:02:26]}  b5 {[%clk 0:02:33]} 12. a3 {[%clk 0:02:26]}  Be7 {[%clk 0:02:32]} 13. Ne5 {[%clk 0:02:21]}  O-O {[%clk 0:02:30]} 14. g4 {[%clk 0:02:19]}  Bh7 {[%clk 0:02:30]} 15. Kg2 {[%clk 0:02:14]}  Nxe5 {[%clk 0:02:30]} 16. Bxe5 {[%clk 0:02:11]}  Nd7 {[%clk 0:02:30]} 17. Bg3 {[%clk 0:02:09]}  Nb6 {[%clk 0:02:30]} 18. f4 {[%clk 0:01:41]}  Na4 {[%clk 0:02:30]} 19. Ra2 {[%clk 0:01:40]}  Bc2 {[%clk 0:02:26]} 20. Bd1 {[%clk 0:01:37]}  Bxd1 {[%clk 0:02:24]} 21. Rxd1 {[%clk 0:01:38]}  Nb6 {[%clk 0:02:08]} 22. Raa1 {[%clk 0:01:30]}  Na4 {[%clk 0:02:08]} 23. Rab1 {[%clk 0:01:31]}  Bxa3 {[%clk 0:01:41]} 24. bxa3 {[%clk 0:01:21]}  Nxc3 {[%clk 0:01:41]} 25. Rdc1 {[%clk 0:01:21]}  Nxb1 {[%clk 0:01:40]} 26. Nxb1 {[%clk 0:01:22]}  Ra4 {[%clk 0:01:08]} 27. Be1 {[%clk 0:01:20]}  Rfa8 {[%clk 0:01:03]} 28. Kf3 {[%clk 0:00:52]}  Kf8 {[%clk 0:01:00]} 29. Rc2 {[%clk 0:00:46]}  Ke8 {[%clk 0:00:51]} 30. Rb2 {[%clk 0:00:46]}  Kd7 {[%clk 0:00:49]} 31. Rxb5 {[%clk 0:00:45]}  Kc6 {[%clk 0:00:48]} 32. Rb2 {[%clk 0:00:37]}  b5 {[%clk 0:00:48]} 33. Bb4 {[%clk 0:00:36]}  R4a6 {[%clk 0:00:43]} 34. Ke2 {[%clk 0:00:33]}  f6 {[%clk 0:00:38]} 35. Kd2 {[%clk 0:00:32]}  Re8 {[%clk 0:00:36]} 36. Nc3 {[%clk 0:00:23]}  e5 {[%clk 0:00:36]} 37. fxe5 {[%clk 0:00:23]}  fxe5 {[%clk 0:00:36]} 38. Bc5 {[%clk 0:00:23]}  exd4 {[%clk 0:00:35]} 39. exd4 {[%clk 0:00:23]}  Rb8 {[%clk 0:00:31]} 40. Rb1 {[%clk 0:00:24]}  Rb7 {[%clk 0:00:24]} 41. Re1 {[%clk 0:00:22]}  Rf7 {[%clk 0:00:20]} 42. Re6+ {[%clk 0:00:18]}  Kb7 {[%clk 0:00:20]} 43. Rxa6 {[%clk 0:00:17]}  Kxa6 {[%clk 0:00:20]} 44. Nxd5 {[%clk 0:00:18]}  Rf3 {[%clk 0:00:19]} 45. h4 {[%clk 0:00:18]}  Ka5 {[%clk 0:00:15]} 46. Bb4+ {[%clk 0:00:09]}  Ka4 {[%clk 0:00:14]} 47. Nc3+ {[%clk 0:00:09]}  Kb3 {[%clk 0:00:14]} 48. Nxb5 {[%clk 0:00:10]}  Rf4 {[%clk 0:00:11]} 49. d5 {[%clk 0:00:09]}  Rxg4 {[%clk 0:00:10]} 50. d6 {[%clk 0:00:09]}  Rg3 {[%clk 0:00:10]} 51. Nd4+ {[%clk 0:00:07]}  Kb2 {[%clk 0:00:10]} 52. Ne2 {[%clk 0:00:04]}  Rd3+ {[%clk 0:00:10]} 53. Ke1 {[%clk 0:00:05]}  g5 {[%clk 0:00:06]} 54. hxg5 {[%clk 0:00:04]}  hxg5 {[%clk 0:00:07]} 55. Nc3 {[%clk 0:00:04]}  Kb3 {[%clk 0:00:05]} 56. Ne4 {[%clk 0:00:04]}  Rd5 {[%clk 0:00:03]} 57. d7 {[%clk 0:00:04]}  c3 {[%clk 0:00:02]} 58. Bxc3 {[%clk 0:00:02]}  Rxd7 {[%clk 0:00:02]} 59. Nc5+ {[%clk 0:00:02]}  Kxc3 {[%clk 0:00:02]} 60. Nxd7 {[%clk 0:00:03]}  Kb3 {[%clk 0:00:02]} 61. Ne5 {[%clk 0:00:03]}  Kxa3 {[%clk 0:00:02]} 62. Kf2 {[%clk 0:00:03]}  Ka4 {[%clk 0:00:02]} 63. Kg3 {[%clk 0:00:04]}  Kb5 {[%clk 0:00:03]} 64. Kg4 {[%clk 0:00:05]}  Ka6 {[%clk 0:00:04]} 65. Kxg5 {[%clk 0:00:06]} 1/2-1/2


[Site "https://www.chess.com"]

[Event "Titled Tuesday Blitz March 14 Early 2023"]
[White "Van Foreest, Jorden"]
[Black "Maatman, Nick"]
[WhiteFideId "1039784"]
[BlackFideId "1040391"]
[WhiteElo "2633"]
[BlackElo "2694"]
[Result "1-0"]
[Round "04"]
[TimeControl "180+2"]
[Date "2023.03.14"]
[WhiteClock "0:01:54"]
[BlackClock "0:00:12"]

1. e4 {[%clk 0:03:00]}  e6 {[%clk 0:02:58]} 2. d4 {[%clk 0:03:00]}  d5 {[%clk 0:02:59]} 3. Nc3 {[%clk 0:03:00]}  Bb4 {[%clk 0:02:58]} 4. e5 {[%clk 0:03:00]}  Ne7 {[%clk 0:02:59]} 5. a3 {[%clk 0:03:00]}  Bxc3+ {[%clk 0:02:59]} 6. bxc3 {[%clk 0:03:01]}  c5 {[%clk 0:03:00]} 7. Qg4 {[%clk 0:03:02]}  cxd4 {[%clk 0:02:57]} 8. Qxg7 {[%clk 0:03:02]}  Rg8 {[%clk 0:02:57]} 9. Qxh7 {[%clk 0:03:02]}  Qc7 {[%clk 0:02:57]} 10. Qd3 {[%clk 0:03:03]}  Qxe5+ {[%clk 0:02:32]} 11. Ne2 {[%clk 0:03:03]}  dxc3 {[%clk 0:02:32]} 12. Qxc3 {[%clk 0:03:03]}  Nbc6 {[%clk 0:02:12]} 13. Qxe5 {[%clk 0:03:03]}  Nxe5 {[%clk 0:02:13]} 14. Ng3 {[%clk 0:03:03]}  Bd7 {[%clk 0:02:10]} 15. Nh5 {[%clk 0:02:50]}  Kd8 {[%clk 0:01:37]} 16. Bb2 {[%clk 0:02:46]}  N7c6 {[%clk 0:01:20]} 17. Be2 {[%clk 0:02:45]}  Ke7 {[%clk 0:01:01]} 18. Rg1 {[%clk 0:02:20]}  Rac8 {[%clk 0:00:58]} 19. g4 {[%clk 0:02:07]}  f5 {[%clk 0:00:40]} 20. g5 {[%clk 0:02:08]}  Ng4 {[%clk 0:00:35]} 21. h3 {[%clk 0:02:04]}  Rxg5 {[%clk 0:00:27]} 22. hxg4 {[%clk 0:02:02]}  e5 {[%clk 0:00:21]} 23. f4 {[%clk 0:02:02]}  Rg6 {[%clk 0:00:17]} 24. fxe5 {[%clk 0:02:02]}  fxg4 {[%clk 0:00:17]} 25. Nf4 {[%clk 0:02:02]}  Rg5 {[%clk 0:00:16]} 26. Nxd5+ {[%clk 0:02:02]}  Ke6 {[%clk 0:00:16]} 27. Nf4+ {[%clk 0:02:00]}  Kf5 {[%clk 0:00:16]} 28. Bd3+ {[%clk 0:01:57]}  Kxf4 {[%clk 0:00:16]} 29. Bc1+ {[%clk 0:01:58]}  Kf3 {[%clk 0:00:15]} 30. Rf1+ {[%clk 0:01:55]}  Kg2 {[%clk 0:00:14]} 31. Be4+ {[%clk 0:01:55]}  Kh2 {[%clk 0:00:13]} 32. Bf4+ {[%clk 0:01:53]}  Kh3 {[%clk 0:00:12]} 33. Rh1# {[%clk 0:01:54]} 1-0


[Site "https://www.chess.com"]

[Event "Titled Tuesday Blitz March 14 Early 2023"]
[White "Ibarra Jerez, Jose Carlos"]
[Black "Csonka, Balazs"]
[WhiteFideId "2226332"]
[BlackFideId "742910"]
[WhiteElo "2638"]
[BlackElo "2404"]
[Result "0-1"]
[Round "04"]
[TimeControl "180+2"]
[Date "2023.03.14"]
[WhiteClock "0:00:02"]
[BlackClock "0:00:05"]

1. e4 {[%clk 0:02:58]}  e6 {[%clk 0:03:00]} 2. d4 {[%clk 0:02:57]}  d5 {[%clk 0:03:00]} 3. Nc3 {[%clk 0:02:56]}  dxe4 {[%clk 0:02:49]} 4. Nxe4 {[%clk 0:02:56]}  Nd7 {[%clk 0:02:50]} 5. Bd3 {[%clk 0:02:55]}  Ngf6 {[%clk 0:02:49]} 6. Qe2 {[%clk 0:02:55]}  c5 {[%clk 0:02:40]} 7. Nxf6+ {[%clk 0:02:54]}  Nxf6 {[%clk 0:02:39]} 8. dxc5 {[%clk 0:02:55]}  Bxc5 {[%clk 0:02:39]} 9. Bg5 {[%clk 0:02:53]}  h6 {[%clk 0:02:34]} 10. Bb5+ {[%clk 0:02:50]}  Bd7 {[%clk 0:02:22]} 11. Bxd7+ {[%clk 0:02:50]}  Qxd7 {[%clk 0:02:21]} 12. Bxf6 {[%clk 0:02:50]}  gxf6 {[%clk 0:02:21]} 13. Nf3 {[%clk 0:02:51]}  O-O-O {[%clk 0:02:15]} 14. O-O {[%clk 0:02:48]}  Qc7 {[%clk 0:02:14]} 15. c4 {[%clk 0:02:43]}  f5 {[%clk 0:02:09]} 16. a3 {[%clk 0:02:41]}  Be7 {[%clk 0:02:09]} 17. c5 {[%clk 0:02:36]}  Bf6 {[%clk 0:01:59]} 18. Rac1 {[%clk 0:02:34]}  Kb8 {[%clk 0:01:48]} 19. Rfe1 {[%clk 0:02:18]}  Rd5 {[%clk 0:01:47]} 20. b4 {[%clk 0:02:17]}  Rhd8 {[%clk 0:01:45]} 21. g3 {[%clk 0:02:11]}  Rd3 {[%clk 0:01:30]} 22. b5 {[%clk 0:02:05]}  Bc3 {[%clk 0:01:16]} 23. b6 {[%clk 0:01:25]}  Qxc5 {[%clk 0:01:15]} 24. bxa7+ {[%clk 0:01:25]}  Kxa7 {[%clk 0:01:15]} 25. Rf1 {[%clk 0:01:00]}  Qd5 {[%clk 0:00:36]} 26. Ne1 {[%clk 0:00:59]}  Bxe1 {[%clk 0:00:36]} 27. Rfxe1 {[%clk 0:00:57]}  Rd2 {[%clk 0:00:28]} 28. Qh5 {[%clk 0:00:42]}  Qd4 {[%clk 0:00:24]} 29. Rf1 {[%clk 0:00:43]}  Qf6 {[%clk 0:00:17]} 30. Rc7 {[%clk 0:00:40]}  R8d7 {[%clk 0:00:17]} 31. Rc4 {[%clk 0:00:39]}  R2d4 {[%clk 0:00:16]} 32. Rfc1 {[%clk 0:00:17]}  Rxc4 {[%clk 0:00:15]} 33. Rxc4 {[%clk 0:00:18]}  Kb8 {[%clk 0:00:15]} 34. Kg2 {[%clk 0:00:16]}  Qe5 {[%clk 0:00:12]} 35. Rf4 {[%clk 0:00:07]}  Qd5+ {[%clk 0:00:07]} 36. Kh3 {[%clk 0:00:08]}  Qd6 {[%clk 0:00:08]} 37. Qxh6 {[%clk 0:00:07]}  Qxa3 {[%clk 0:00:07]} 38. Qh8+ {[%clk 0:00:06]}  Ka7 {[%clk 0:00:07]} 39. Qe5 {[%clk 0:00:04]}  Rd5 {[%clk 0:00:06]} 40. Qe2 {[%clk 0:00:04]}  Qd6 {[%clk 0:00:04]} 41. Ra4+ {[%clk 0:00:04]}  Kb8 {[%clk 0:00:05]} 42. Rh4 {[%clk 0:00:04]}  Qd7 {[%clk 0:00:04]} 43. Rh8+ {[%clk 0:00:04]}  Kc7 {[%clk 0:00:05]} 44. Qc2+ {[%clk 0:00:04]}  Kb6 {[%clk 0:00:05]} 45. Qe2 {[%clk 0:00:03]}  e5 {[%clk 0:00:04]} 46. Rh4 {[%clk 0:00:03]}  f4+ {[%clk 0:00:04]} 47. Kg2 {[%clk 0:00:03]}  fxg3 {[%clk 0:00:04]} 48. hxg3 {[%clk 0:00:03]}  Rd4 {[%clk 0:00:04]} 49. Rh6+ {[%clk 0:00:03]}  Rd6 {[%clk 0:00:03]} 50. Rh4 {[%clk 0:00:03]}  Qc6+ {[%clk 0:00:02]} 51. Kh2 {[%clk 0:00:04]}  f6 {[%clk 0:00:03]} 52. Rb4+ {[%clk 0:00:04]}  Ka7 {[%clk 0:00:03]} 53. Qa2+ {[%clk 0:00:04]}  Kb8 {[%clk 0:00:03]} 54. Qg8+ {[%clk 0:00:04]}  Kc7 {[%clk 0:00:03]} 55. Qf7+ {[%clk 0:00:05]}  Rd7 {[%clk 0:00:03]} 56. Qb3 {[%clk 0:00:05]}  Qd6 {[%clk 0:00:03]} 57. Rc4+ {[%clk 0:00:06]}  Kd8 {[%clk 0:00:03]} 58. Rh4 {[%clk 0:00:05]}  Re7 {[%clk 0:00:03]} 59. Qc4 {[%clk 0:00:05]}  Qc6 {[%clk 0:00:03]} 60. Rh8+ {[%clk 0:00:05]}  Kc7 {[%clk 0:00:03]} 61. Qd3 {[%clk 0:00:05]}  Rd7 {[%clk 0:00:04]} 62. Qe3 {[%clk 0:00:05]}  e4 {[%clk 0:00:03]} 63. Rh4 {[%clk 0:00:04]}  f5 {[%clk 0:00:03]} 64. Qf4+ {[%clk 0:00:05]}  Qd6 {[%clk 0:00:03]} 65. Qxf5 {[%clk 0:00:06]}  e3 {[%clk 0:00:02]} 66. Rc4+ {[%clk 0:00:06]}  Kb6 {[%clk 0:00:02]} 67. Qb1+ {[%clk 0:00:05]}  Ka7 {[%clk 0:00:02]} 68. Qa2+ {[%clk 0:00:04]}  Kb8 {[%clk 0:00:02]} 69. fxe3 {[%clk 0:00:04]}  Qh6+ {[%clk 0:00:02]} 70. Kg2 {[%clk 0:00:05]}  Qxe3 {[%clk 0:00:03]} 71. Rc2 {[%clk 0:00:03]}  Qe4+ {[%clk 0:00:03]} 72. Kg1 {[%clk 0:00:03]}  Rd1+ {[%clk 0:00:02]} 73. Kf2 {[%clk 0:00:03]}  Qe1+ {[%clk 0:00:02]} 74. Kf3 {[%clk 0:00:03]}  Rd3+ {[%clk 0:00:03]} 75. Kf4 {[%clk 0:00:03]}  Qxg3+ {[%clk 0:00:03]} 76. Ke4 {[%clk 0:00:03]}  Qf3+ {[%clk 0:00:03]} 77. Ke5 {[%clk 0:00:03]}  Re3+ {[%clk 0:00:02]} 78. Kd4 {[%clk 0:00:03]}  Re4+ {[%clk 0:00:02]} 79. Kc5 {[%clk 0:00:03]}  Qf5+ {[%clk 0:00:02]} 80. Kb6 {[%clk 0:00:02]}  Re6+ {[%clk 0:00:02]} 81. Qxe6 {[%clk 0:00:01]}  Qxe6+ {[%clk 0:00:02]} 82. Ka5 {[%clk 0:00:01]}  Qa6+ {[%clk 0:00:03]} 83. Kb4 {[%clk 0:00:01]}  Qb6+ {[%clk 0:00:03]} 84. Kc3 {[%clk 0:00:02]}  Kc7 {[%clk 0:00:03]} 85. Kd3+ {[%clk 0:00:02]}  Kd6 {[%clk 0:00:04]} 86. Re2 {[%clk 0:00:02]}  Qb5+ {[%clk 0:00:04]} 87. Kd2 {[%clk 0:00:02]}  Kd5 {[%clk 0:00:04]} 88. Re3 {[%clk 0:00:02]}  Qb2+ {[%clk 0:00:04]} 89. Kd1 {[%clk 0:00:02]}  b5 {[%clk 0:00:04]} 90. Rh3 {[%clk 0:00:02]}  Qb1+ {[%clk 0:00:04]} 91. Kd2 {[%clk 0:00:02]}  Qb2+ {[%clk 0:00:04]} 92. Kd1 {[%clk 0:00:03]}  Qd4+ {[%clk 0:00:04]} 93. Kc1 {[%clk 0:00:03]}  Kc4 {[%clk 0:00:04]} 94. Kb1 {[%clk 0:00:01]}  Qg1+ {[%clk 0:00:04]} 95. Ka2 {[%clk 0:00:01]}  Qg2+ {[%clk 0:00:05]} 96. Ka3 {[%clk 0:00:01]}  b4+ {[%clk 0:00:04]} 97. Ka4 {[%clk 0:00:02]}  Qa8# {[%clk 0:00:05]} 0-1


[Site "https://www.chess.com"]

[Event "Titled Tuesday Blitz March 14 Early 2023"]
[White "Timofeev, Artyom"]
[Black "Starozhilov, Leonid"]
[WhiteFideId "4140419"]
[BlackFideId "14106752"]
[WhiteElo "2586"]
[BlackElo "2402"]
[Result "1-0"]
[Round "04"]
[TimeControl "180+2"]
[Date "2023.03.14"]
[WhiteClock "0:00:09"]
[BlackClock "0:00:10"]

1. e4 {[%clk 0:03:00]}  g6 {[%clk 0:02:56]} 2. d4 {[%clk 0:03:00]}  Bg7 {[%clk 0:02:57]} 3. Nc3 {[%clk 0:02:58]}  d6 {[%clk 0:02:57]} 4. Bf4 {[%clk 0:02:58]}  a6 {[%clk 0:02:57]} 5. Qd2 {[%clk 0:02:57]}  b5 {[%clk 0:02:57]} 6. O-O-O {[%clk 0:02:56]}  Bb7 {[%clk 0:02:57]} 7. Nf3 {[%clk 0:02:55]}  e6 {[%clk 0:02:56]} 8. Bd3 {[%clk 0:02:40]}  Nd7 {[%clk 0:02:53]} 9. Kb1 {[%clk 0:02:38]}  h6 {[%clk 0:02:52]} 10. h3 {[%clk 0:02:29]}  Ne7 {[%clk 0:02:51]} 11. Rhe1 {[%clk 0:02:28]}  Nb6 {[%clk 0:02:39]} 12. a3 {[%clk 0:02:17]}  Qd7 {[%clk 0:02:27]} 13. Qe3 {[%clk 0:02:06]}  O-O-O {[%clk 0:02:08]} 14. Nd2 {[%clk 0:01:59]}  Nc6 {[%clk 0:01:57]} 15. Nb3 {[%clk 0:01:57]}  e5 {[%clk 0:01:54]} 16. dxe5 {[%clk 0:01:56]}  Nxe5 {[%clk 0:01:54]} 17. Bxe5 {[%clk 0:01:51]}  Bxe5 {[%clk 0:01:51]} 18. Qd2 {[%clk 0:01:39]}  Qe6 {[%clk 0:01:28]} 19. f4 {[%clk 0:01:37]}  Bg7 {[%clk 0:01:27]} 20. Na5 {[%clk 0:01:36]}  Rhe8 {[%clk 0:01:23]} 21. Nxb7 {[%clk 0:01:23]}  Kxb7 {[%clk 0:01:24]} 22. Na2 {[%clk 0:01:23]}  Nc4 {[%clk 0:01:07]} 23. Bxc4 {[%clk 0:01:23]}  Qxc4 {[%clk 0:01:08]} 24. Qd5+ {[%clk 0:01:07]}  Qxd5 {[%clk 0:01:06]} 25. exd5 {[%clk 0:01:07]}  Kb6 {[%clk 0:00:57]} 26. Nb4 {[%clk 0:01:06]}  h5 {[%clk 0:00:47]} 27. g3 {[%clk 0:01:01]}  a5 {[%clk 0:00:41]} 28. Nd3 {[%clk 0:01:00]}  c5 {[%clk 0:00:38]} 29. dxc6 {[%clk 0:01:00]}  Kxc6 {[%clk 0:00:39]} 30. c3 {[%clk 0:00:59]}  Bf6 {[%clk 0:00:36]} 31. Kc2 {[%clk 0:00:58]}  Kc7 {[%clk 0:00:34]} 32. g4 {[%clk 0:00:55]}  hxg4 {[%clk 0:00:34]} 33. hxg4 {[%clk 0:00:55]}  g5 {[%clk 0:00:28]} 34. Rf1 {[%clk 0:00:39]}  Re7 {[%clk 0:00:27]} 35. fxg5 {[%clk 0:00:36]}  Bxg5 {[%clk 0:00:28]} 36. Rf5 {[%clk 0:00:35]}  Re2+ {[%clk 0:00:26]} 37. Kb1 {[%clk 0:00:35]}  f6 {[%clk 0:00:21]} 38. Rxb5 {[%clk 0:00:34]}  a4 {[%clk 0:00:21]} 39. Nb4 {[%clk 0:00:32]}  Rh8 {[%clk 0:00:18]} 40. Nc2 {[%clk 0:00:18]}  Rhh2 {[%clk 0:00:17]} 41. Nd4 {[%clk 0:00:18]}  Reg2 {[%clk 0:00:15]} 42. Rb4 {[%clk 0:00:18]}  Kc8 {[%clk 0:00:12]} 43. Nf3 {[%clk 0:00:17]}  Rh3 {[%clk 0:00:09]} 44. Nxg5 {[%clk 0:00:16]}  fxg5 {[%clk 0:00:09]} 45. Rxa4 {[%clk 0:00:16]}  Rhh2 {[%clk 0:00:09]} 46. Rb4 {[%clk 0:00:15]}  Kc7 {[%clk 0:00:10]} 47. Rd5 {[%clk 0:00:15]}  Kc6 {[%clk 0:00:10]} 48. Rxg5 {[%clk 0:00:14]}  Rh1+ {[%clk 0:00:11]} 49. Ka2 {[%clk 0:00:14]}  Rgg1 {[%clk 0:00:12]} 50. Rg8 {[%clk 0:00:13]}  Ra1+ {[%clk 0:00:10]} 51. Kb3 {[%clk 0:00:13]}  Rh2 {[%clk 0:00:11]} 52. Rc8+ {[%clk 0:00:12]}  Kd5 {[%clk 0:00:12]} 53. g5 {[%clk 0:00:10]}  Rb1 {[%clk 0:00:12]} 54. Ka2 {[%clk 0:00:10]}  Rg1 {[%clk 0:00:11]} 55. Rd4+ {[%clk 0:00:10]}  Ke5 {[%clk 0:00:10]} 56. Re8+ {[%clk 0:00:09]}  Kf5 {[%clk 0:00:10]} 57. Rxd6 {[%clk 0:00:09]} 1-0


[Site "https://www.chess.com"]

[Event "Titled Tuesday Blitz March 14 Early 2023"]
[White "Salinas Herrera, Pablo"]
[Black "Matinian, Nikita"]
[WhiteFideId "3407128"]
[BlackFideId "24129100"]
[WhiteElo "2550"]
[BlackElo "2422"]
[Result "1-0"]
[Round "04"]
[TimeControl "180+2"]
[Date "2023.03.14"]
[WhiteClock "0:00:14"]
[BlackClock "0:00:03"]

1. d4 {[%clk 0:02:57]}  Nf6 {[%clk 0:02:59]} 2. Nf3 {[%clk 0:02:54]}  g6 {[%clk 0:03:00]} 3. Nbd2 {[%clk 0:02:52]}  d5 {[%clk 0:03:00]} 4. e3 {[%clk 0:02:52]}  c5 {[%clk 0:02:56]} 5. dxc5 {[%clk 0:02:50]}  Nbd7 {[%clk 0:02:54]} 6. b4 {[%clk 0:02:49]}  a5 {[%clk 0:02:54]} 7. c3 {[%clk 0:02:49]}  Bg7 {[%clk 0:02:53]} 8. Bb2 {[%clk 0:02:50]}  O-O {[%clk 0:02:50]} 9. a3 {[%clk 0:02:50]}  Qc7 {[%clk 0:02:46]} 10. Be2 {[%clk 0:02:47]}  b6 {[%clk 0:02:46]} 11. cxb6 {[%clk 0:02:47]}  Nxb6 {[%clk 0:02:46]} 12. O-O {[%clk 0:02:46]}  Rd8 {[%clk 0:02:44]} 13. Qb3 {[%clk 0:02:40]}  Bd7 {[%clk 0:02:36]} 14. Rac1 {[%clk 0:02:33]}  Ba4 {[%clk 0:02:08]} 15. Qa2 {[%clk 0:02:32]}  Qb8 {[%clk 0:01:24]} 16. Qb1 {[%clk 0:02:03]}  h5 {[%clk 0:01:21]} 17. c4 {[%clk 0:01:56]}  axb4 {[%clk 0:01:21]} 18. axb4 {[%clk 0:01:55]}  dxc4 {[%clk 0:01:19]} 19. Be5 {[%clk 0:01:51]}  Qb7 {[%clk 0:01:17]} 20. Nxc4 {[%clk 0:01:51]}  Nbd5 {[%clk 0:01:16]} 21. Bd4 {[%clk 0:00:58]}  Rab8 {[%clk 0:01:04]} 22. Bc5 {[%clk 0:00:51]}  Nxb4 {[%clk 0:00:59]} 23. Bb6 {[%clk 0:00:52]}  Nbd5 {[%clk 0:00:39]} 24. Bxd8 {[%clk 0:00:51]}  Qxb1 {[%clk 0:00:40]} 25. Rxb1 {[%clk 0:00:51]}  Rxd8 {[%clk 0:00:41]} 26. Nb6 {[%clk 0:00:37]}  Nxb6 {[%clk 0:00:37]} 27. Rxb6 {[%clk 0:00:38]}  Ne4 {[%clk 0:00:37]} 28. Rb4 {[%clk 0:00:36]}  Nc3 {[%clk 0:00:36]} 29. Bc4 {[%clk 0:00:33]}  e6 {[%clk 0:00:28]} 30. h4 {[%clk 0:00:33]}  Bf8 {[%clk 0:00:28]} 31. Rb2 {[%clk 0:00:31]}  Bg7 {[%clk 0:00:27]} 32. Rd2 {[%clk 0:00:27]}  Rc8 {[%clk 0:00:26]} 33. Ba6 {[%clk 0:00:27]}  Ra8 {[%clk 0:00:24]} 34. Bb7 {[%clk 0:00:28]}  Rb8 {[%clk 0:00:24]} 35. Ba6 {[%clk 0:00:28]}  Ra8 {[%clk 0:00:24]} 36. Bd3 {[%clk 0:00:25]}  e5 {[%clk 0:00:22]} 37. Bc2 {[%clk 0:00:24]}  Bb5 {[%clk 0:00:19]} 38. Re1 {[%clk 0:00:23]}  e4 {[%clk 0:00:16]} 39. Nd4 {[%clk 0:00:23]}  Bxd4 {[%clk 0:00:15]} 40. exd4 {[%clk 0:00:23]}  f5 {[%clk 0:00:15]} 41. d5 {[%clk 0:00:22]}  Kg7 {[%clk 0:00:06]} 42. d6 {[%clk 0:00:22]}  Rd8 {[%clk 0:00:05]} 43. f3 {[%clk 0:00:22]}  Bd3 {[%clk 0:00:04]} 44. fxe4 {[%clk 0:00:17]}  Bxe4 {[%clk 0:00:03]} 45. Bb3 {[%clk 0:00:12]}  Kf6 {[%clk 0:00:02]} 46. Re3 {[%clk 0:00:12]}  Nb5 {[%clk 0:00:02]} 47. d7 {[%clk 0:00:11]}  Nc7 {[%clk 0:00:02]} 48. Ba4 {[%clk 0:00:11]}  Ne6 {[%clk 0:00:02]} 49. g3 {[%clk 0:00:10]}  Nc5 {[%clk 0:00:02]} 50. Bb5 {[%clk 0:00:10]}  Ke7 {[%clk 0:00:02]} 51. Rd4 {[%clk 0:00:10]}  Nxd7 {[%clk 0:00:02]} 52. Bxd7 {[%clk 0:00:09]}  Rxd7 {[%clk 0:00:03]} 53. Rxd7+ {[%clk 0:00:10]}  Kxd7 {[%clk 0:00:04]} 54. Kf2 {[%clk 0:00:11]}  Ke6 {[%clk 0:00:04]} 55. Ra3 {[%clk 0:00:12]}  Ke5 {[%clk 0:00:04]} 56. Ra5+ {[%clk 0:00:12]}  Kf6 {[%clk 0:00:05]} 57. Ke3 {[%clk 0:00:13]}  g5 {[%clk 0:00:04]} 58. Ra6+ {[%clk 0:00:13]}  Kg7 {[%clk 0:00:05]} 59. hxg5 {[%clk 0:00:14]}  Bb1 {[%clk 0:00:03]} 60. Kf4 {[%clk 0:00:14]}  Kh7 {[%clk 0:00:03]} 61. Rh6+ {[%clk 0:00:13]}  Kg7 {[%clk 0:00:03]} 62. Rxh5 {[%clk 0:00:14]} 1-0


[Site "https://www.chess.com"]

[Event "Titled Tuesday Blitz March 14 Early 2023"]
[White "Gupta, Abhijeet"]
[Black "Ozates, Tuna"]
[WhiteFideId "5010608"]
[BlackFideId "6354521"]
[WhiteElo "2528"]
[BlackElo "2151"]
[Result "0-1"]
[Round "04"]
[TimeControl "180+2"]
[Date "2023.03.14"]
[WhiteClock "0:01:18"]
[BlackClock "0:02:04"]

1. d4 {[%clk 0:03:00]}  Nf6 {[%clk 0:02:59]} 2. Nf3 {[%clk 0:03:00]}  d5 {[%clk 0:02:59]} 3. Bf4 {[%clk 0:03:00]}  c5 {[%clk 0:03:00]} 4. e3 {[%clk 0:03:00]}  Nc6 {[%clk 0:03:00]} 5. Nbd2 {[%clk 0:03:01]}  cxd4 {[%clk 0:03:00]} 6. exd4 {[%clk 0:03:01]}  Bf5 {[%clk 0:03:00]} 7. c3 {[%clk 0:02:58]}  e6 {[%clk 0:03:00]} 8. Qb3 {[%clk 0:02:56]}  Bd6 {[%clk 0:02:59]} 9. Bg3 {[%clk 0:02:32]}  Rb8 {[%clk 0:02:56]} 10. Bb5 {[%clk 0:02:29]}  O-O {[%clk 0:02:55]} 11. O-O {[%clk 0:02:28]}  a6 {[%clk 0:02:49]} 12. Be2 {[%clk 0:02:20]}  b5 {[%clk 0:02:44]} 13. Ne5 {[%clk 0:02:19]}  Bxe5 {[%clk 0:02:40]} 14. dxe5 {[%clk 0:02:18]}  Nd7 {[%clk 0:02:40]} 15. Nf3 {[%clk 0:02:15]}  Nc5 {[%clk 0:02:36]} 16. Qd1 {[%clk 0:02:14]}  b4 {[%clk 0:02:32]} 17. c4 {[%clk 0:02:09]}  d4 {[%clk 0:02:29]} 18. Nd2 {[%clk 0:02:08]}  d3 {[%clk 0:02:28]} 19. Bg4 {[%clk 0:02:03]}  Bg6 {[%clk 0:02:27]} 20. h4 {[%clk 0:02:03]}  h6 {[%clk 0:02:27]} 21. h5 {[%clk 0:01:55]}  Bh7 {[%clk 0:02:26]} 22. Kh2 {[%clk 0:01:49]}  Nd4 {[%clk 0:02:25]} 23. f4 {[%clk 0:01:49]}  Nc2 {[%clk 0:02:23]} 24. Qf3 {[%clk 0:01:40]}  Nxa1 {[%clk 0:02:21]} 25. Rxa1 {[%clk 0:01:41]}  Qd4 {[%clk 0:02:20]} 26. Rb1 {[%clk 0:01:37]}  Ne4 {[%clk 0:02:15]} 27. Be1 {[%clk 0:01:36]}  Nxd2 {[%clk 0:02:14]} 28. Bxd2 {[%clk 0:01:37]}  Qxc4 {[%clk 0:02:15]} 29. Rc1 {[%clk 0:01:32]}  Qxa2 {[%clk 0:02:14]} 30. f5 {[%clk 0:01:33]}  exf5 {[%clk 0:02:14]} 31. Bxf5 {[%clk 0:01:33]}  Bxf5 {[%clk 0:02:14]} 32. Qxf5 {[%clk 0:01:34]}  Qxb2 {[%clk 0:02:15]} 33. Rd1 {[%clk 0:01:29]}  Qc2 {[%clk 0:02:14]} 34. Qg4 {[%clk 0:01:28]}  Kh8 {[%clk 0:02:09]} 35. Bxh6 {[%clk 0:01:18]}  gxh6 {[%clk 0:02:07]} 36. Qf4 {[%clk 0:01:18]}  Rb6 {[%clk 0:02:04]} 37. Rc1 {[%clk 0:01:18]}  Qe2 {[%clk 0:02:04]} 0-1


[Site "https://www.chess.com"]